bitfinex/quotes_SOLUSD_20220306
["timestamp","ask_amount","ask_price","bid_price","bid_amount"]
[1646574953678,5.692,87.836,87.79,17.0934]
[1646574953878,6.22798679,87.835,87.79,17.0934]
[1646574954081,5.692,87.834,87.79,17.0934]
[1646574954376,6.22798679,87.833,87.79,17.0934]
[1646574954578,23.4482,87.834,87.79,17.0934]
[1646574954982,6.22936531,87.833,87.79,17.0934]
[1646574955579,23.4482,87.834,87.79,17.0934]
[1646574955786,6.22936088,87.833,87.79,17.0934]
[1646574957079,23.4482,87.834,87.79,17.0934]
[1646574961280,6.22935959,87.833,87.79,17.0934]
[1646574961583,23.4482,87.834,87.79,17.0934]
[1646574964580,3.10707556,87.843,87.79,19.92953526]
[1646574965081,24.9382,87.859,87.79,19.92953526]
[1646574965082,3.10707556,87.848,87.79,19.92953526]
[1646574965283,3.10707556,87.846,87.79,19.92953526]
[1646574965481,3.10707556,87.847,87.79,19.92953526]
[1646574965681,3.10707556,87.848,87.79,19.92953526]
[1646574966288,23.3158,87.847,87.79,19.92953526]
[1646574966685,6.22881187,87.846,87.79,19.92953526]
[1646574967282,9.33588743,87.846,87.79,19.92953526]
[1646574969086,5.692,87.845,87.79,19.92953526]
[1646574969284,8.79907556,87.845,87.79,19.92953526]
[1646574969484,9.33588743,87.844,87.79,19.92953526]
[1646574969884,5.692,87.843,87.79,17.0934]
[1646574970285,6.22881187,87.842,87.79,17.0934]
[1646574970488,5.692,87.841,87.79,17.0934]
[1646574970687,6.22881187,87.84,87.79,17.0934]
[1646574971085,6.22881187,87.842,87.79,17.0934]
[1646574971286,8.79907556,87.841,87.79,17.0934]
[1646574971687,6.22881187,87.84,87.79,17.0934]
[1646574971890,3.10707556,87.841,87.79,17.0934]
[1646574973394,3.10707556,87.835,87.79,17.0934]
[1646574973594,24.6302,87.834,87.79,17.0934]
[1646574973995,6.22881187,87.833,87.79,17.0934]
[1646574974500,9.33588743,87.833,87.79,17.0934]
[1646574975200,6.22881187,87.833,87.79,17.0934]
[1646574975398,9.33588743,87.833,87.79,17.0934]
[1646574977301,9.33588743,87.833,87.791,2.83613526]
[1646574977507,6.22881187,87.833,87.8,17.0883]
[1646574977702,6.22881187,87.832,87.801,45.91520424]
[1646574978120,6.22881187,87.835,87.801,45.91520424]
[1646574978323,6.22881187,87.831,87.801,45.91520424]
[1646574978520,6.22881187,87.834,87.791,2.83613526]
[1646574978722,3.10707556,87.836,87.81,17.0889]
[1646574979321,3.10707556,87.835,87.81,17.0889]
[1646574979922,3.10707556,87.836,87.81,17.0889]
[1646574980321,3.10707556,87.837,87.81,17.0889]
[1646574981224,3.10707556,87.836,87.81,17.0889]
[1646574982825,3.10707556,87.835,87.81,17.0889]
[1646574984729,3.10707556,87.835,87.801,24.2121]
[1646574984928,3.10707556,87.831,87.777,2.83613526]
[1646574985129,3.10707556,87.829,87.777,2.83613526]
[1646574985728,3.10707556,87.828,87.778,55.99254449]
[1646574985931,3.10707556,87.827,87.778,55.99254449]
[1646574986134,24.9869,87.826,87.778,58.82867975]
[1646574986330,6.22881187,87.825,87.778,58.82867975]
[1646574987129,6.22881187,87.825,87.79,17.0932]
[1646574988633,5.72881187,87.825,87.79,17.0932]
[1646574992535,5.72881187,87.825,87.79,19.92933526]
[1646574992934,5.72881187,87.825,87.79,17.0932]
[1646574993536,1.55579374,87.802,87.79,17.0932]
[1646574994637,0.00579374,87.802,87.791,2.83613526]
[1646574994836,0.00579374,87.803,87.793,114.1]
[1646574995035,3.10707556,87.836,87.793,114.1]
[1646574995236,3.10707556,87.838,87.8,17.0843]
[1646574995537,3.10707556,87.839,87.8,17.0843]
[1646574995735,3.10707556,87.839,87.801,2.83613526]
[1646574996338,3.10707556,87.841,87.801,2.83613526]
[1646574996936,3.10707556,87.845,87.801,21.45591202]
[1646574997136,3.10707556,87.844,87.81,17.0863]
[1646574997335,3.10707556,87.845,87.811,50.50999004]
[1646574998639,3.10707556,87.845,87.82,17.0846]
[1646574998838,3.10707556,87.845,87.802,2.83613526]
[1646574999641,3.10707556,87.845,87.803,55.19604628]
[1646574999842,3.10707556,87.845,87.81,17.0888]
[1646575000845,3.10707556,87.846,87.81,17.0888]
[1646575001246,3.10707556,87.845,87.81,17.0888]
[1646575001442,3.10707556,87.846,87.81,17.0888]
[1646575003451,3.10707556,87.847,87.81,17.0888]
[1646575004475,3.10707556,87.841,87.791,2.83613526]
[1646575004673,3.10707556,87.837,87.791,2.83613526]
[1646575004874,3.10707556,87.833,87.777,23.4634]
[1646575005070,3.10707556,87.832,87.777,23.4634]
[1646575005270,3.10707556,87.83,87.776,2.83613526]
[1646575005471,3.10707556,87.818,87.77,5.694]
[1646575005673,3.10707556,87.816,87.77,5.694]
[1646575005872,3.10707556,87.816,87.76,17.0985]
[1646575006073,3.10707556,87.806,87.759,23.4634]
[1646575006272,3.10707556,87.804,87.759,23.4634]
[1646575006676,3.10707556,87.803,87.759,23.4634]
[1646575006874,3.10707556,87.804,87.76,17.0982]
[1646575007073,3.10707556,87.802,87.76,17.0982]
[1646575007477,3.10707556,87.803,87.759,23.4634]
[1646575007674,3.10707556,87.806,87.759,23.4634]
[1646575007874,3.10707556,87.806,87.754,57.14728067]
[1646575009175,5.696,87.805,87.754,57.14728067]
[1646575009676,8.80307556,87.81,87.754,57.14728067]
[1646575009978,5.696,87.81,87.754,57.14728067]
[1646575010378,23.7338,87.809,87.754,57.14728067]
[1646575010576,5.695,87.808,87.754,57.14728067]
[1646575014983,5.695,87.808,87.75,17.1]
[1646575015384,5.695,87.808,87.751,23.8297]
[1646575015982,5.695,87.808,87.751,78.11046798]
[1646575017086,5.695,87.808,87.751,23.8297]
[1646575017983,5.695,87.808,87.752,58.61008225]
[1646575018684,23.7338,87.809,87.752,58.61008225]
[1646575022385,5.696,87.808,87.752,58.61008225]
[1646575023086,5.696,87.808,87.751,23.8297]
[1646575023287,5.696,87.808,87.737,2.83613526]
[1646575023288,119.796,87.808,87.737,2.83613526]
[1646575023487,3.49702533,87.807,87.733,24.9256]
[1646575023687,0.42448885,87.805,87.733,24.9256]
[1646575023987,5.696,87.804,87.733,24.9256]
[1646575024186,17.1027,87.8,87.733,24.9256]
[1646575024388,5.696,87.799,87.733,24.9256]
[1646575024789,24.6646,87.798,87.733,24.9256]
[1646575024987,5.696,87.797,87.733,24.9256]
[1646575026496,24.6646,87.798,87.74,17.1023]
[1646575026889,3.10707556,87.827,87.741,45.27559047]
[1646575027092,24.6646,87.827,87.741,45.27559047]
[1646575027289,27.77167556,87.827,87.742,45.27559047]
[1646575027689,5.695,87.826,87.743,70.22739047]
[1646575028088,5.695,87.826,87.76,17.0944]
[1646575028388,5.695,87.826,87.762,56.78011199]
[1646575028790,5.695,87.826,87.762,59.61624725]
[1646575029693,8.80207556,87.826,87.762,59.61624725]
[1646575030092,8.80207556,87.826,87.77,17.0947]
[1646575030316,5.695,87.826,87.77,17.0947]
[1646575030694,27.77167556,87.827,87.77,17.0947]
[1646575030896,24.6646,87.827,87.771,24.0887]
[1646575031294,24.6646,87.827,87.78,17.0939]
[1646575031895,3.10707556,87.824,87.728,24.7481]
[1646575032094,3.10707556,87.816,87.736,24.0887]
[1646575032297,33.45717556,87.815,87.74,19.93703526]
[1646575032694,3.10707556,87.814,87.74,19.93703526]
[1646575032899,5.696,87.813,87.741,62.58632286]
[1646575033096,5.696,87.813,87.741,65.42245812]
[1646575033498,3.10707556,87.808,87.741,65.42245812]
[1646575033696,3.10707556,87.808,87.75,17.0988]
[1646575033697,5.696,87.807,87.75,17.0988]
[1646575034197,8.80307556,87.807,87.751,24.8259]
[1646575034398,3.10707556,87.803,87.751,24.8259]
[1646575034598,5.696,87.802,87.751,24.8259]
[1646575034999,5.696,87.802,87.76,17.0989]
[1646575035398,3.10707556,87.8,87.76,17.0989]
[1646575035800,3.10707556,87.799,87.76,17.0989]
[1646575039022,3.10707556,87.8,87.76,17.0989]
[1646575040124,5.696,87.799,87.76,17.0989]
[1646575043530,5.696,87.8,87.76,17.0989]
[1646575044131,30.1341,87.8,87.76,17.0989]
[1646575044331,33.24117556,87.8,87.76,17.0989]
[1646575045532,30.1341,87.8,87.76,17.0989]
[1646575045735,33.24117556,87.8,87.76,17.0989]
[1646575046333,30.1341,87.8,87.76,17.0989]
[1646575046735,33.24117556,87.8,87.76,17.0989]
[1646575046935,30.1341,87.8,87.76,17.0989]
[1646575047135,33.24117556,87.8,87.76,17.0989]
[1646575048036,3.10707556,87.798,87.76,17.0989]
[1646575048439,3.10707556,87.799,87.76,17.0989]
[1646575048636,5.696,87.798,87.76,17.0989]
[1646575049842,3.10707556,87.799,87.76,17.0989]
[1646575050036,3.10707556,87.798,87.76,17.0989]
[1646575050635,3.10707556,87.799,87.76,17.0989]
[1646575053240,5.696,87.798,87.76,17.0989]
[1646575054144,8.80307556,87.799,87.76,17.0989]
[1646575055043,5.696,87.799,87.76,17.0989]
[1646575055243,8.80307556,87.799,87.76,17.0989]
[1646575055450,3.10707556,87.798,87.76,17.0989]
[1646575055643,5.696,87.797,87.76,17.0989]
[1646575055843,3.10707556,87.796,87.76,17.0989]
[1646575056842,3.10707556,87.797,87.76,17.0989]
[1646575057844,3.10707556,87.797,87.752,5.696]
[1646575058045,3.10707556,87.789,87.752,5.696]
[1646575058244,3.10707556,87.787,87.751,24.8259]
[1646575058442,3.10707556,87.786,87.74,17.1027]
[1646575058643,3.10707556,87.782,87.74,17.1027]
[1646575059242,3.10707556,87.783,87.74,17.1027]
[1646575059443,3.10707556,87.782,87.74,17.1027]
[1646575059644,3.10707556,87.783,87.74,17.1027]
[1646575059846,3.10707556,87.782,87.74,17.1027]
[1646575060047,3.10707556,87.784,87.74,17.1027]
[1646575060449,3.10707556,87.783,87.732,24.9358]
[1646575060649,3.10707556,87.776,87.732,24.9358]
[1646575061850,3.10707556,87.774,87.732,24.9358]
[1646575062250,3.10707556,87.777,87.732,24.9358]
[1646575062547,5.697,87.776,87.732,24.9358]
[1646575062951,8.80407556,87.777,87.732,24.9358]
[1646575063548,3.10707556,87.776,87.732,24.9358]
[1646575064454,5.697,87.775,87.732,24.9358]
[1646575064651,3.10707556,87.767,87.732,24.9358]
[1646575064850,5.698,87.766,87.732,24.9358]
[1646575065048,5.698,87.769,87.732,24.9358]
[1646575065250,17.1095,87.77,87.7,22.7127]
[1646575065450,3.10707556,87.762,87.709,24.5269]
[1646575065652,8.80507556,87.761,87.709,24.5269]
[1646575066451,5.698,87.761,87.709,24.5269]
[1646575067052,5.698,87.761,87.7,22.7127]
[1646575067252,20.21797556,87.76,87.692,2.83613526]
[1646575067454,5.699,87.759,87.692,2.83613526]
[1646575067752,3.10707556,87.758,87.692,2.83613526]
[1646575067953,5.699,87.757,87.692,2.83613526]
[1646575068355,17.1135,87.75,87.692,2.83613526]
[1646575068554,5.699,87.749,87.692,2.83613526]
[1646575069155,22.5509,87.748,87.692,2.83613526]
[1646575069857,5.699,87.747,87.692,2.83613526]
[1646575070457,17.114,87.74,87.677,2.83613526]
[1646575070659,6.10661467,87.739,87.677,2.83613526]
[1646575070856,6.10661467,87.739,87.664,2.83613526]
[1646575071058,0.42936746,87.737,87.67,17.1159]
[1646575071257,5.7,87.736,87.654,2.83613526]
[1646575071457,114.1,87.729,87.654,2.83613526]
[1646575071679,10.05719469,87.736,87.637,54.87143955]
[1646575071680,114.1,87.725,87.637,54.87143955]
[1646575071881,114.1,87.725,87.627,23.7621]
[1646575071882,0.53766889,87.724,87.638,23.7621]
[1646575072181,0.53766889,87.722,87.638,23.7621]
[1646575072380,0.53766889,87.72,87.638,23.7621]
[1646575072580,4.24539424,87.708,87.638,23.7621]
[1646575072781,0.53766889,87.705,87.638,23.7621]
[1646575073183,5.7,87.704,87.638,23.7621]
[1646575073381,5.7,87.705,87.638,23.7621]
[1646575073781,17.1222,87.7,87.638,23.7621]
[1646575073981,5.7,87.699,87.638,23.7621]
[1646575074181,5.7,87.699,87.64,17.1215]
[1646575074380,5.7,87.699,87.638,23.7621]
[1646575074581,5.7,87.706,87.638,23.7621]
[1646575075184,119.8,87.706,87.638,23.7621]
[1646575075381,0.53766889,87.705,87.638,23.7621]
[1646575075582,5.7,87.704,87.638,23.7621]
[1646575075785,0.53766889,87.703,87.638,23.7621]
[1646575075981,5.7,87.702,87.638,23.7621]
[1646575076183,131.76006889,87.7,87.638,23.7621]
[1646575076385,5.703,87.699,87.638,23.7621]
[1646575076581,0.53766889,87.698,87.638,23.7621]
[1646575076782,5.703,87.697,87.638,23.7621]
[1646575076981,137.6511,87.696,87.638,23.7621]
[1646575077382,5.703,87.695,87.638,23.7621]
[1646575078185,17.1242,87.69,87.638,23.7621]
[1646575078387,5.703,87.689,87.638,23.7621]
[1646575078983,5.703,87.695,87.638,23.7621]
[1646575079184,23.5511,87.696,87.638,23.7621]
[1646575079388,23.5511,87.696,87.64,17.1226]
[1646575080989,23.5511,87.696,87.641,2.83613526]
[1646575081285,23.5511,87.696,87.65,17.1154]
[1646575081486,24.7976,87.709,87.65,17.1154]
[1646575081686,24.5415,87.708,87.651,24.6312]
[1646575081884,24.5415,87.708,87.651,27.46733526]
[1646575082085,5.702,87.707,87.651,27.46733526]
[1646575082285,5.702,87.707,87.652,2.83613526]
[1646575082684,5.702,87.707,87.66,17.1185]
[1646575084784,24.5415,87.708,87.66,17.1185]
[1646575085386,24.5415,87.708,87.651,24.6312]
[1646575086987,24.5415,87.708,87.66,17.1184]
[1646575087189,24.5415,87.708,87.661,23.0675]
[1646575087990,5.702,87.707,87.661,23.0675]
[1646575094200,119.802,87.707,87.661,23.0675]
[1646575094404,119.802,87.707,87.631,2.83613526]
[1646575094608,120.33922899,87.706,87.632,22.6633]
[1646575094805,11.94222899,87.705,87.632,22.6633]
[1646575095002,117.20707556,87.699,87.633,5.703]
[1646575095203,5.703,87.698,87.633,5.703]
[1646575095505,114.1,87.697,87.633,61.50555499]
[1646575095704,36.30882899,87.696,87.633,61.50555499]
[1646575095905,6.23922899,87.695,87.633,61.50555499]
[1646575096109,17.1242,87.69,87.633,5.703]
[1646575096509,5.703,87.689,87.633,5.703]
[1646575097111,6.23977954,87.688,87.633,5.703]
[1646575097306,5.703,87.687,87.633,5.703]
[1646575097507,30.60637954,87.686,87.633,5.703]
[1646575097707,5.703,87.685,87.633,5.703]
[1646575097943,5.703,87.685,87.64,17.1222]
[1646575099139,6.23972911,87.684,87.64,17.1222]
[1646575100033,5.703,87.685,87.64,17.1222]
[1646575100235,24.3666,87.686,87.641,5.703]
[1646575100836,6.23959455,87.685,87.641,5.703]
[1646575101335,5.703,87.684,87.64,17.1222]
[1646575101638,6.23959455,87.683,87.64,17.1222]
[1646575102035,6.23959455,87.684,87.64,17.1222]
[1646575102235,5.703,87.683,87.64,17.1222]
[1646575102438,5.703,87.685,87.64,17.1222]
[1646575102635,6.23962101,87.684,87.64,17.1222]
[1646575102835,5.703,87.683,87.632,22.6633]
[1646575103036,5.704,87.685,87.632,22.6633]
[1646575103335,6.23959083,87.684,87.632,22.6633]
[1646575103935,5.703,87.683,87.632,22.6633]
[1646575104138,5.203,87.683,87.632,22.6633]
[1646575104340,5.704,87.685,87.632,22.6633]
[1646575104536,6.23965577,87.684,87.632,22.6633]
[1646575104736,5.703,87.683,87.632,22.6633]
[1646575105138,5.704,87.685,87.632,22.6633]
[1646575105536,6.23973801,87.684,87.632,22.6633]
[1646575105738,5.703,87.683,87.632,22.6633]
[1646575106338,5.704,87.685,87.632,22.6633]
[1646575106538,6.23973197,87.684,87.632,22.6633]
[1646575106741,5.703,87.683,87.633,61.76022686]
[1646575106939,5.703,87.683,87.64,17.1224]
[1646575107139,5.703,87.685,87.64,17.1224]
[1646575107439,6.23976256,87.684,87.64,17.1224]
[1646575107640,5.703,87.683,87.64,17.1224]
[1646575107840,6.23976256,87.682,87.64,17.1224]
[1646575108040,5.703,87.681,87.64,17.1224]
[1646575108242,5.703,87.685,87.64,17.1224]
[1646575114249,3.10707556,87.699,87.64,17.1224]
[1646575114453,28.87529677,87.708,87.64,17.1224]
[1646575114851,1.55528942,87.684,87.65,17.118]
[1646575115551,1.55528942,87.685,87.65,17.118]
[1646575116153,1.55528942,87.684,87.65,17.118]
[1646575117955,1.55528942,87.681,87.648,5.703]
[1646575118153,1.55528942,87.68,87.643,5.703]
[1646575118354,1.55528942,87.679,87.643,5.703]
[1646575119156,1.55528942,87.679,87.65,17.1202]
[1646575119357,1.55528942,87.679,87.643,5.703]
[1646575119562,1.55528942,87.678,87.642,22.7844]
[1646575119758,1.55528942,87.675,87.642,22.7844]
[1646575119958,1.55528942,87.674,87.642,22.7844]
[1646575120158,1.55528942,87.671,87.62,17.1263]
[1646575120358,1.55528942,87.664,87.621,56.16157494]
[1646575120758,1.55528942,87.664,87.621,5.704]
[1646575120958,1.55528942,87.661,87.621,5.704]
[1646575121759,1.55528942,87.662,87.621,5.704]
[1646575121960,1.55528942,87.661,87.621,5.704]
[1646575122161,1.55528942,87.66,87.621,5.704]
[1646575122963,1.55528942,87.659,87.621,5.704]
[1646575123260,1.55528942,87.659,87.63,17.1248]
[1646575123462,1.55528942,87.658,87.63,17.1248]
[1646575123660,1.55528942,87.659,87.63,17.1248]
[1646575123860,1.55528942,87.663,87.631,5.704]
[1646575124083,1.55528942,87.668,87.631,5.704]
[1646575124287,1.55528942,87.666,87.632,2.83613526]
[1646575124491,1.55528942,87.666,87.64,17.119]
[1646575124988,1.55528942,87.667,87.64,17.119]
[1646575125383,1.55528942,87.672,87.65,17.1177]
[1646575125583,1.55528942,87.673,87.65,17.1177]
[1646575125783,1.55528942,87.674,87.65,17.1177]
[1646575126884,1.55528942,87.675,87.65,17.1177]
[1646575127886,1.55528942,87.675,87.65,19.95383526]
[1646575128885,1.55528942,87.676,87.65,19.95383526]
[1646575129087,1.55528942,87.676,87.65,17.1177]
[1646575129285,1.55528942,87.675,87.65,17.1177]
[1646575130688,1.55528942,87.676,87.65,17.1177]
[1646575132690,1.55528942,87.677,87.65,17.1177]
[1646575132890,1.55528942,87.68,87.65,17.1177]
[1646575134291,1.55528942,87.681,87.65,17.1177]
[1646575137096,1.55528942,87.682,87.65,17.1177]
[1646575137296,1.55528942,87.681,87.65,17.1177]
[1646575137496,1.55528942,87.682,87.65,17.1177]
[1646575138096,1.55528942,87.681,87.65,17.1177]
[1646575138898,1.55528942,87.682,87.65,17.1177]
[1646575143901,1.55528942,87.683,87.65,17.1177]
[1646575144101,1.55528942,87.682,87.65,17.1177]
[1646575144902,1.55528942,87.675,87.635,2.83613526]
[1646575145301,1.55528942,87.676,87.635,2.83613526]
[1646575146203,1.55528942,87.676,87.65,17.1203]
[1646575146603,1.55528942,87.677,87.65,17.1203]
[1646575146804,1.55528942,87.681,87.651,8.53913526]
[1646575147203,1.55528942,87.681,87.66,17.1141]
[1646575147403,1.55528942,87.682,87.661,64.45153239]
[1646575147804,1.55528942,87.682,87.662,5.703]
[1646575148007,1.55528942,87.683,87.662,5.703]
[1646575148404,1.55528942,87.687,87.67,17.1154]
[1646575148605,1.55528942,87.688,87.67,17.1154]
[1646575149207,1.55528942,87.689,87.67,17.1154]
[1646575151633,1.55528942,87.69,87.67,17.1154]
[1646575152232,1.55528942,87.687,87.67,17.1154]
[1646575153337,1.55528942,87.688,87.67,17.1154]
[1646575153936,1.55528942,87.689,87.67,17.1154]
[1646575154133,1.55528942,87.689,87.671,5.702]
[1646575154340,1.55528942,87.698,87.68,17.1083]
[1646575154538,1.55528942,87.705,87.681,55.13333741]
[1646575154736,1.55528942,87.706,87.68,17.1083]
[1646575154936,1.55528942,87.697,87.68,17.1083]
[1646575155136,1.55528942,87.694,87.681,5.702]
[1646575155335,1.55528942,87.693,87.681,5.702]
[1646575155535,1.55528942,87.692,87.681,5.702]
[1646575155738,1.55528942,87.691,87.672,24.775]
[1646575155939,1.55528942,87.691,87.661,5.702]
[1646575156437,1.55528942,87.688,87.661,5.702]
[1646575156637,1.55528942,87.688,87.67,17.1164]
[1646575157437,1.55528942,87.689,87.67,17.1164]
[1646575157838,1.55528942,87.69,87.67,17.1164]
[1646575158440,1.55528942,87.689,87.67,17.1164]
[1646575158636,1.55528942,87.69,87.67,17.1164]
[1646575158839,1.55528942,87.689,87.67,17.1164]
[1646575159036,1.55528942,87.69,87.67,17.1164]
[1646575159437,1.55528942,87.689,87.67,17.1164]
[1646575165243,1.55528942,87.686,87.67,17.1164]
[1646575165842,1.55528942,87.681,87.67,17.1164]
[1646575171147,1.55528942,87.681,87.66,17.1179]
[1646575175150,1.55528942,87.68,87.66,17.1179]
[1646575175750,1.55528942,87.68,87.651,23.98]
[1646575175950,1.55528942,87.676,87.634,2.83613526]
[1646575176151,1.55528942,87.67,87.628,23.1904]
[1646575176351,1.55528942,87.668,87.628,23.1904]
[1646575176751,1.55528942,87.668,87.628,87.71255868]
[1646575176956,1.55528942,87.668,87.63,17.1238]
[1646575177154,1.55528942,87.667,87.63,17.1238]
[1646575177352,1.55528942,87.666,87.63,17.1238]
[1646575177952,1.55528942,87.669,87.63,17.1238]
[1646575179559,1.55528942,87.662,87.63,17.1238]
[1646575180154,1.55528942,87.665,87.63,17.1238]
[1646575181156,1.55528942,87.666,87.63,17.1238]
[1646575181756,1.55528942,87.667,87.63,17.1238]
[1646575182357,1.55528942,87.668,87.63,17.1238]
[1646575183257,1.55528942,87.667,87.63,17.1238]
[1646575183457,1.55528942,87.669,87.63,17.1238]
[1646575184080,1.55528942,87.67,87.63,17.1238]
[1646575184259,1.55528942,87.669,87.63,17.1238]
[1646575185562,1.55528942,87.67,87.63,17.1238]
[1646575188467,1.55528942,87.669,87.63,17.1238]
[1646575188868,1.55528942,87.668,87.63,17.1238]
[1646575191789,1.55528942,87.667,87.63,17.1238]
[1646575191998,1.55528942,87.668,87.63,17.1238]
[1646575192995,1.55528942,87.667,87.63,17.1238]
[1646575194896,1.55528942,87.666,87.63,17.1238]
[1646575197602,1.55528942,87.665,87.63,17.1238]
[1646575200205,1.55528942,87.664,87.63,17.1238]
[1646575201005,1.55528942,87.663,87.63,17.1238]
[1646575202208,6.23979466,87.68,87.63,17.1238]
[1646575202209,1.55528942,87.662,87.631,116.93613526]
[1646575202409,1.55528942,87.678,87.64,17.1103]
[1646575202608,1.55528942,87.678,87.641,61.47943106]
[1646575202811,1.55528942,87.68,87.642,24.3475]
[1646575203207,1.55528942,87.68,87.643,116.93613526]
[1646575203408,1.55528942,87.679,87.643,116.93613526]
[1646575203609,1.55528942,87.682,87.644,2.83613526]
[1646575203808,1.55528942,87.681,87.65,17.1144]
[1646575204208,1.55528942,87.683,87.65,17.1144]
[1646575205109,1.55528942,87.683,87.65,19.95053526]
[1646575205315,1.55528942,87.685,87.65,19.95053526]
[1646575208211,1.55528942,87.685,87.65,17.1144]
[1646575208411,1.55528942,87.685,87.651,2.83613526]
[1646575208614,1.55528942,87.686,87.66,17.1137]
[1646575208813,1.55528942,87.686,87.661,48.52537753]
[1646575209014,1.55528942,87.687,87.661,48.52537753]
[1646575210120,1.55528942,87.687,87.67,17.1149]
[1646575210819,1.55528942,87.688,87.67,17.1149]
[1646575212316,1.55528942,87.689,87.67,17.1149]
[1646575213516,1.55528942,87.69,87.67,17.1149]
[1646575213917,1.55528942,87.69,87.671,51.35984728]
[1646575214116,1.55528942,87.69,87.68,17.1115]
[1646575214322,1.55528942,87.689,87.68,17.1115]
[1646575214924,3.10707556,87.714,87.68,17.1115]
[1646575214925,1.55528942,87.692,87.68,17.1115]
[1646575215120,1.55528942,87.693,87.68,17.1115]
[1646575216921,1.55528942,87.693,87.681,114.1]
[1646575217121,1.55528942,87.694,87.681,2.83613526]
[1646575217323,1.55528942,87.697,87.68,17.1115]
[1646575217525,0.00528942,87.698,87.681,114.1]
[1646575217725,6.2383214,87.744,87.681,138.0028]
[1646575217924,3.10707556,87.755,87.691,114.1]
[1646575218126,3.10707556,87.754,87.693,170.96659023]
[1646575218526,3.10707556,87.754,87.693,56.86659023]
[1646575218724,3.10707556,87.761,87.694,116.93613526]
[1646575219123,3.10707556,87.761,87.701,114.1]
[1646575219525,3.10707556,87.761,87.703,114.1]
[1646575219726,9.34273045,87.763,87.703,114.1]
[1646575219928,23.8374,87.769,87.704,2.83613526]
[1646575220127,3.10707556,87.773,87.704,2.83613526]
[1646575220128,6.23491117,87.768,87.704,2.83613526]
[1646575220327,6.23491117,87.787,87.705,114.1]
[1646575220531,5.698,87.786,87.711,114.1]
[1646575220732,5.698,87.787,87.711,114.1]
[1646575220931,5.698,87.787,87.713,114.1]
[1646575221330,5.698,87.787,87.714,2.83613526]
[1646575221529,5.698,87.787,87.73,17.1014]
[1646575221735,23.8374,87.788,87.731,60.24605366]
[1646575221932,29.5344,87.788,87.731,60.24605366]
[1646575222133,23.8374,87.788,87.731,60.24605366]
[1646575222531,23.8374,87.788,87.732,114.1]
[1646575222933,23.8374,87.788,87.733,2.83613526]
[1646575224233,23.8374,87.788,87.74,17.0999]
[1646575228049,5.697,87.809,87.72,109.95653865]
[1646575228050,5.697,87.809,87.741,114.1]
[1646575228246,457.3634362,87.886,87.741,114.1]
[1646575228247,30.4688,87.822,87.752,59.00247914]
[1646575228452,24.7728,87.822,87.753,138.3588]
[1646575228647,24.7728,87.822,87.754,114.1]
[1646575229050,5.695,87.821,87.754,116.93613526]
[1646575229252,5.695,87.821,87.754,144.59242201]
[1646575229453,24.7728,87.822,87.77,17.0917]
[1646575230249,5.695,87.821,87.77,17.0917]
[1646575232351,5.695,87.821,87.771,114.1]
[1646575232551,53.1409,87.855,87.781,114.1]
[1646575232753,53.1409,87.855,87.783,114.1]
[1646575234255,53.1409,87.855,87.8,17.0896]
[1646575234456,4.72060758,87.798,87.79,56.96]
[1646575235058,4.72060758,87.798,87.772,2.83613526]
[1646575235257,4.72060758,87.798,87.77,17.0966]
[1646575237259,4.72060758,87.798,87.76,17.0984]
[1646575238862,4.72060758,87.798,87.735,2.83613526]
[1646575239863,4.72060758,87.798,87.74,17.1025]
[1646575240463,5.696,87.797,87.74,17.1025]
[1646575243264,5.696,87.797,87.74,16.6025]
[1646575246168,5.696,87.799,87.74,16.6025]
[1646575249471,5.696,87.804,87.74,16.6025]
[1646575251075,17.1026,87.8,87.74,16.6025]
[1646575251276,5.696,87.799,87.74,16.6025]
[1646575252375,24.9793,87.798,87.74,16.6025]
[1646575252574,5.696,87.797,87.74,16.6025]
[1646575252775,17.1044,87.79,87.73,17.1044]